[Event "Lueneburg Open-B 2019"]
[Site "Lueneburg"]
[Date "2019.08.08"]
[Round "6.1"]
[White "Wiese, Uwe"]
[Black "Thomas, Jeremy"]
[Result "1-0"]
[ECO "D11"]
[WhiteElo "1737"]
[BlackElo "1717"]
[Annotator "NA"]
[PlyCount "143"]
[EventDate "2019.08.03"]
[EventType "swiss"]
[EventCountry "GER"]
[SourceTitle "playchess.com"]
[Source "ChessBase"]
[SourceQuality "1"]
[TimeControl "40/5400+30:1800+30"]

1. d4 {[%emt 0:00:00]} d5 {[%emt 0:00:00]} 2. c4 {[%emt 0:00:00]} c6 {[%emt 0:00:00]} 3. e3 {[%emt 0:00:29]} Nf6 {[%emt 0:00:04]} 4. Nf3 {[%emt 0:00:39]} a6 {[%emt 0:00:37]} 5. cxd5 {[%emt 0:00:41]} cxd5 {[%emt 0:00:28]} 6. Be2 {[%emt 0:01:14]} h6 {[%emt 0:06:16]} 7. Nc3 {[%emt 0:00:29]} Nc6 {[%emt 0:02:24]} 8. O-O {[%emt 0:02:54]} e6 {[%emt 0:09:56]} 9. b3 {[%emt 0:01:19]} Bd6 {[%emt 0:01:02]} 10. Bb2 {[%emt 0:00:25]} b5 {[%emt 0:04:13]} 11. Rc1 {[%emt 0:00:35]} Bd7 {[%emt 0:01:04]} 12. Bd3 {[%emt 0:08:12]} b4 {[%emt 0:02:18]} 13. Na4 {[%emt 0:02:44]} Ne7 {[%emt 0:10:12]} 14. Qe2 {[%emt 0:02:39]} Bxa4 {[%emt 0:08:31]} 15. bxa4 {[%emt 0:00:32]} a5 {[%emt 0:00:33]} 16. Bb5+ {[%emt 0:02:36]} Kf8 {[%emt 0:03:53]} 17. Rc2 {[%emt 0:03:53]} Rc8 {[%emt 0:03:30]} 18. Rxc8 {[%emt 0:02:15]} Nxc8 {[%emt 0:01:40]} 19. Rc1 {[%emt 0:00:49]} Na7 {[%emt 0:00:11]} 20. Ne5 {[%emt 0:03:54]} Bxe5 {[%emt 0:14:32]} 21. dxe5 {[%emt 0:00:34]} Nd7 {[%emt 0:00:15]} 22. Bd4 {[%emt 0:06:11]} Nxb5 {[%emt 0:01:23]} 23. Qxb5 {[%emt 0:02:08]} g6 {[%emt 0:01:35]} 24. Qb7 {[%emt 0:00:25]} Kg7 {[%emt 0:03:01]} 25. Rc7 {[%emt 0:00:12]} Qb8 {[%emt 0:00:01]} 26. Rxd7 {[%emt 0:01:49]} Qxb7 {[%emt 0:00:01]} 27. Rxb7 {[%emt 0:00:39]} Rc8 {[%emt 0:00:03]} 28. g3 {[%emt 0:00:27]} Rc2 {[%emt 0:00:16]} 29. Rb5 {[%emt 0:00:23]} Rxa2 {[%emt 0:00:21]} 30. Rxa5 {[%emt 0:00:19]} g5 {[%emt 0:00:13]} 31. g4 {[%emt 0:01:03]} Kg6 {[%emt 0:00:51]} 32. Kg2 {[%emt 0:00:29]} h5 {[%emt 0:00:11]} 33. gxh5+ {[%emt 0:00:25]} Kxh5 {[%emt 0:00:00]} 34. Ra7 {[%emt 0:00:44]} Kg6 {[%emt 0:00:40]} 35. a5 {[%emt 0:01:49]} b3 {[%emt 0:00:19]} 36. Rb7 {[%emt 0:00:17]} Rxa5 {[%emt 0:00:11]} 37. Rxb3 {[%emt 0:00:10]} Ra8 {[%emt 0:00:31]} 38. Kg3 {[%emt 0:00:23]} Rc8 {[%emt 0:00:42]} 39. f4 {[%emt 0:01:42]} gxf4+ {[%emt 0:01:00]} 40. exf4 {[%emt 0:00:37]} Kf5 {[%emt 0:00:17]} 41. Kf3 {[%emt 0:34:48]} Rh8 {[%emt 0:30:37]} 42. Rb2 {[%emt 0:08:00]} Rh3+ {[%emt 0:00:44]} 43. Kg2 {[%emt 0:02:04]} Rd3 {[%emt 0:01:16]} 44. Bf2 {[%emt 0:00:48]} Kxf4 {[%emt 0:00:41]} 45. Bg3+ {[%emt 0:00:17]} Kf5 {[%emt 0:01:17]} 46. Rf2+ {[%emt 0:00:45]} Kg6 {[%emt 0:00:07]} 47. h4 {[%emt 0:00:36]} Rc3 {[%emt 0:01:28]} 48. Rf6+ {[%emt 0:00:24]} Kg7 {[%emt 0:00:09]} 49. h5 {[%emt 0:00:54]} Rc7 {[%emt 0:00:08]} 50. Kf3 {[%emt 0:00:54]} Ra7 {[%emt 0:03:57]} 51. Bf4 {[%emt 0:02:33]} Rb7 {[%emt 0:01:07]} 52. h6+ {[%emt 0:03:15]} Kg8 {[%emt 0:00:25]} 53. Be3 {[%emt 0:00:35]} Rb3 {[%emt 0:03:03]} 54. Rf4 {[%emt 0:00:36]} Rb1 {[%emt 0:01:19]} 55. Rg4+ {[%emt 0:00:21]} Kh8 {[%emt 0:00:26]} 56. Rg7 {[%emt 0:01:15]} Rb7 {[%emt 0:00:14]} 57. Bg5 {[%emt 0:00:22]} Rb3+ {[%emt 0:00:25]} 58. Kg4 {[%emt 0:00:59]} Rb4+ {[%emt 0:00:21]} 59. Kh5 {[%emt 0:00:19]} Rb1 {[%emt 0:00:05]} 60. Bf6 {[%emt 0:00:35]} Rh1+ {[%emt 0:00:05]} 61. Kg5 {[%emt 0:00:49]} Rg1+ {[%emt 0:00:01]} 62. Kf4 {[%emt 0:00:58]} Rxg7 {[%emt 0:00:39]} 63. Bxg7+ {[%emt 0:06:32]} Kh7 {[%emt 0:01:10]} 64. Bf8 {[%emt 0:00:21]} Kg6 {[%emt 0:00:33]} 65. Kg4 {[%emt 0:00:39]} Kh7 {[%emt 0:00:49]} 66. Kh5 {[%emt 0:00:17]} Kg8 {[%emt 0:00:54]} 67. Bb4 {[%emt 0:02:07]} d4 {[%emt 0:01:17]} 68. Bd2 {[%emt 0:00:08]} f6 {[%emt 0:00:11]} 69. exf6 {[%emt 0:00:30]} e5 {[%emt 0:00:16]} 70. Kg6 {[%emt 0:00:25]} e4 {[%emt 0:00:09]} 71. f7+ {[%emt 0:00:08]} Kf8 {[%emt 0:00:01]} 72. Bb4# {[%emt 0:00:11]} 1-0

[Event "Lueneburg Open-B 2019"]
[Site "Lueneburg"]
[Date "2019.08.08"]
[Round "6.2"]
[White "Fomenkov, Alexander"]
[Black "Rewerts, Ingo"]
[Result "0-1"]
[ECO "B01"]
[WhiteElo "1779"]
[BlackElo "1792"]
[Annotator "NA"]
[PlyCount "136"]
[EventDate "2019.08.03"]
[EventType "swiss"]
[EventCountry "GER"]
[SourceTitle "playchess.com"]
[Source "ChessBase"]
[SourceQuality "1"]
[TimeControl "40/5400+30:1800+30"]

1. e4 {[%emt 0:00:00]} d5 {[%emt 0:00:00]} 2. exd5 {[%emt 0:00:09]} Qxd5 {[%emt 0:00:04]} 3. Nc3 {[%emt 0:00:40]} Qa5 {[%emt 0:00:14]} 4. Nf3 {[%emt 0:00:14]} Bg4 {[%emt 0:00:38]} 5. d4 {[%emt 0:00:30]} c6 {[%emt 0:00:13]} 6. Bc4 {[%emt 0:04:10]} e6 {[%emt 0:00:34]} 7. O-O {[%emt 0:00:42]} Nf6 {[%emt 0:00:17]} 8. h3 {[%emt 0:02:49]} Bh5 {[%emt 0:01:09]} 9. Re1 {[%emt 0:03:08]} Bd6 {[%emt 0:04:09]} 10. Qd3 {[%emt 0:24:59]} Bxf3 {[%emt 0:02:46]} 11. Qxf3 {[%emt 0:00:22]} O-O {[%emt 0:00:09]} 12. Be3 {[%emt 0:05:39]} Qh5 {[%emt 0:11:30]} 13. Qxh5 {[%emt 0:01:20]} Nxh5 {[%emt 0:00:03]} 14. Ne4 {[%emt 0:00:10]} Be7 {[%emt 0:00:06]} 15. c3 {[%emt 0:02:22]} Nd7 {[%emt 0:00:39]} 16. g4 {[%emt 0:06:11]} Nhf6 {[%emt 0:00:12]} 17. Nxf6+ {[%emt 0:00:31]} Nxf6 {[%emt 0:00:33]} 18. Rad1 {[%emt 0:00:47]} Rfe8 {[%emt 0:05:10]} 19. a4 {[%emt 0:02:12]} a5 {[%emt 0:01:05]} 20. Bf4 {[%emt 0:02:20]} Nd5 {[%emt 0:01:57]} 21. Bg3 {[%emt 0:00:55]} Rad8 {[%emt 0:06:12]} 22. Kg2 {[%emt 0:00:57]} Kf8 {[%emt 0:02:18]} 23. f4 {[%emt 0:00:28]} Bd6 {[%emt 0:03:04]} 24. Kf3 {[%emt 0:00:30]} Nc7 {[%emt 0:05:21]} 25. Bd3 {[%emt 0:04:50]} c5 {[%emt 0:00:58]} 26. Be4 {[%emt 0:02:01]} Rb8 {[%emt 0:10:13]} 27. dxc5 {[%emt 0:00:44]} Bxc5 {[%emt 0:00:52]} 28. Rd7 {[%emt 0:00:12]} Re7 {[%emt 0:03:26]} 29. Red1 {[%emt 0:00:49]} b6 {[%emt 0:07:59]} 30. f5 {[%emt 0:02:55]} exf5 {[%emt 0:00:42]} 31. Rxe7 {[%emt 0:01:06]} Kxe7 {[%emt 0:00:43]} 32. Bxf5 {[%emt 0:01:44]} Rd8 {[%emt 0:01:15]} 33. Bh4+ {[%emt 0:01:12]} f6 {[%emt 0:00:55]} 34. Rxd8 {[%emt 0:01:28]} Kxd8 {[%emt 0:00:06]} 35. Bxh7 {[%emt 0:00:05]} Kd7 {[%emt 0:07:12]} 36. Bg3 {[%emt 0:01:33]} Nd5 {[%emt 0:04:26]} 37. Bg8 {[%emt 0:10:11]} Ne7 {[%emt 0:03:13]} 38. Bf7 {[%emt 0:00:18]} Nc6 {[%emt 0:04:28]} 39. Ke4 {[%emt 0:01:19]} Bd6 {[%emt 0:01:39]} 40. Be8+ {[%emt 0:02:12]} Kxe8 {[%emt 0:00:57]} 41. Bxd6 {[%emt 0:30:27]} Kd7 {[%emt 0:30:06]} 42. Kd5 {[%emt 0:02:45]} Nd8 {[%emt 0:01:53]} 43. Bf4 {[%emt 0:05:12]} Ne6 {[%emt 0:02:22]} 44. Be3 {[%emt 0:00:23]} Nc7+ {[%emt 0:00:09]} 45. Kc4 {[%emt 0:00:40]} Kc6 {[%emt 0:00:17]} 46. Bd2 {[%emt 0:02:50]} Ne8 {[%emt 0:04:42]} 47. Bf4 {[%emt 0:02:30]} g6 {[%emt 0:02:23]} 48. h4 {[%emt 0:00:00]} Ng7 {[%emt 0:00:00]} 49. Bh6 {[%emt 0:00:00]} Ne6 {[%emt 0:00:00]} 50. Bd2 {[%emt 0:00:00]} Ng7 {[%emt 0:00:00]} 51. h5 {[%emt 0:00:00]} gxh5 {[%emt 0:00:00]} 52. Bh6 {[%emt 0:00:00]} h4 {[%emt 0:00:00]} 53. Be3 {[%emt 0:00:00]} Ne6 {[%emt 0:00:00]} 54. Kd3 {[%emt 0:00:00]} h3 {[%emt 0:00:00]} 55. Bg1 {[%emt 0:00:00]} Nc5+ {[%emt 0:00:00]} 56. Ke3 {[%emt 0:00:00]} Nxa4 {[%emt 0:00:00]} 57. Kf3 {[%emt 0:00:00]} Nxb2 {[%emt 0:00:00]} 58. Bd4 {[%emt 0:00:00]} a4 {[%emt 0:00:00]} 59. Bxf6 {[%emt 0:00:00]} a3 {[%emt 0:00:00]} 60. c4 {[%emt 0:00:00]} Nxc4 {[%emt 0:00:00]} 61. Kg3 {[%emt 0:00:00]} b5 {[%emt 0:00:00]} 62. g5 {[%emt 0:02:21]} Kd6 {[%emt 0:00:00]} 63. g6 {[%emt 0:01:01]} Ke6 {[%emt 0:00:00]} 64. Bc3 {[%emt 0:00:09]} a2 {[%emt 0:00:00]} 65. Kxh3 {[%emt 0:01:22]} b4 {[%emt 0:00:00]} 66. g7 {[%emt 0:00:41]} Kf7 {[%emt 0:00:00]} 67. Bxb4 {[%emt 0:00:41]} a1=Q {[%emt 0:00:00]} 68. Bf8 {[%emt 0:00:13]} Qg1 {[%emt 0:00:00]} 0-1

[Event "Lueneburg Open-B 2019"]
[Site "Lueneburg"]
[Date "2019.08.08"]
[Round "6.3"]
[White "Suliga, Eckhard"]
[Black "Groth, Matthias"]
[Result "1-0"]
[ECO "B96"]
[WhiteElo "1682"]
[BlackElo "1737"]
[Annotator "NA"]
[PlyCount "81"]
[EventDate "2019.08.03"]
[EventType "swiss"]
[EventCountry "GER"]
[SourceTitle "playchess.com"]
[Source "ChessBase"]
[SourceQuality "1"]
[TimeControl "40/5400+30:1800+30"]

1. e4 {[%emt 0:00:00]} c5 {[%emt 0:00:00]} 2. Nf3 {[%emt 0:00:00]} d6 {[%emt 0:00:00]} 3. d4 {[%emt 0:00:16]} cxd4 4. Nxd4 {[%emt 0:00:09]} Nf6 {[%emt 0:00:00]} 5. Nc3 {[%emt 0:00:08]} a6 {[%emt 0:00:00]} 6. Bg5 {[%emt 0:01:09]} e6 {[%emt 0:00:00]} 7. f4 {[%emt 0:00:37]} Nbd7 {[%emt 0:00:06]} 8. Bc4 {[%emt 0:00:33]} b5 {[%emt 0:00:59]} 9. Bb3 {[%emt 0:12:43]} Qb6 {[%emt 0:01:41]} 10. Bxf6 {[%emt 0:12:47]} Nxf6 {[%emt 0:03:57]} 11. Qd2 {[%emt 0:11:09]} Bb7 {[%emt 0:09:22]} 12. O-O-O {[%emt 0:08:07]} Be7 {[%emt 0:01:41]} 13. Qe2 {[%emt 0:05:24]} Nd7 {[%emt 0:03:26]} 14. a3 {[%emt 0:03:27]} b4 {[%emt 0:06:29]} 15. Na4 {[%emt 0:01:37]} Qa5 {[%emt 0:00:41]} 16. axb4 {[%emt 0:01:50]} Qxb4 {[%emt 0:01:13]} 17. Rhe1 {[%emt 0:02:33]} Rc8 {[%emt 0:01:54]} 18. Qd2 {[%emt 0:02:38]} Qxd2+ {[%emt 0:05:57]} 19. Rxd2 {[%emt 0:00:06]} O-O {[%emt 0:03:23]} 20. Nxe6 {[%emt 0:03:20]} Rfe8 {[%emt 0:01:38]} 21. Nc3 {[%emt 0:01:29]} Kh8 {[%emt 0:00:42]} 22. Nd4 {[%emt 0:00:36]} Nc5 {[%emt 0:00:32]} 23. Bd5 {[%emt 0:02:40]} Bxd5 {[%emt 0:07:04]} 24. exd5 {[%emt 0:00:27]} Bf6 {[%emt 0:02:09]} 25. Rxe8+ {[%emt 0:00:21]} Rxe8 {[%emt 0:00:02]} 26. Re2 {[%emt 0:00:05]} Rc8 {[%emt 0:02:41]} 27. Nc6 {[%emt 0:03:16]} g6 {[%emt 0:01:08]} 28. Kd2 {[%emt 0:01:25]} Rc7 {[%emt 0:04:14]} 29. b3 {[%emt 0:00:29]} Kg7 {[%emt 0:03:44]} 30. Ne4 {[%emt 0:01:29]} Rd7 {[%emt 0:02:42]} 31. Nxc5 {[%emt 0:01:59]} dxc5 {[%emt 0:00:28]} 32. c4 {[%emt 0:00:12]} Rb7 {[%emt 0:01:17]} 33. Kc2 {[%emt 0:00:35]} h6 {[%emt 0:02:50]} 34. Re8 {[%emt 0:00:23]} g5 {[%emt 0:03:03]} 35. fxg5 {[%emt 0:04:13]} hxg5 {[%emt 0:00:13]} 36. g4 {[%emt 0:01:08]} Ba1 {[%emt 0:02:24]} 37. Re7 {[%emt 0:04:23]} Rb6 {[%emt 0:00:19]} 38. Re8 {[%emt 0:02:26]} Kf6 {[%emt 0:03:06]} 39. Rb8 {[%emt 0:02:59]} Rxb8 {[%emt 0:01:21]} 40. Nxb8 {[%emt 0:00:02]} Be5 {[%emt 0:00:14]} 41. Nd7+ {[%emt 0:30:48]} 1-0

[Event "Lueneburg Open-B 2019"]
[Site "Lueneburg"]
[Date "2019.08.08"]
[Round "6.4"]
[White "Ische, Helmut"]
[Black "Schulze, Lukas"]
[Result "1-0"]
[ECO "B01"]
[WhiteElo "1662"]
[BlackElo "1724"]
[Annotator "NA"]
[PlyCount "56"]
[EventDate "2019.08.03"]
[EventType "swiss"]
[EventCountry "GER"]
[SourceTitle "playchess.com"]
[Source "ChessBase"]
[SourceQuality "1"]
[TimeControl "40/5400+30:1800+30"]

1. e4 {[%emt 0:00:00]} d5 {[%emt 0:00:00]} 2. exd5 {[%emt 0:00:00]} Qxd5 {[%emt 0:00:00]} 3. Nc3 {[%emt 0:00:00]} Qd8 {[%emt 0:00:00]} 4. d4 {[%emt 0:00:24]} Nf6 {[%emt 0:00:10]} 5. Nf3 {[%emt 0:00:36]} Bg4 {[%emt 0:00:32]} 6. Be2 {[%emt 0:00:48]} e6 {[%emt 0:00:32]} 7. O-O {[%emt 0:00:33]} Be7 {[%emt 0:00:08]} 8. Re1 {[%emt 0:03:13]} O-O {[%emt 0:01:06]} 9. Qd3 {[%emt 0:03:42]} c6 {[%emt 0:02:33]} 10. Be3 {[%emt 0:04:19]} Nbd7 {[%emt 0:01:32]} 11. Rad1 {[%emt 0:03:54]} Qc7 {[%emt 0:02:02]} 12. h3 {[%emt 0:02:18]} Bxf3 {[%emt 0:02:12]} 13. Bxf3 {[%emt 0:00:28]} Rad8 {[%emt 0:01:51]} 14. Bg5 {[%emt 0:08:50]} Rfe8 {[%emt 0:04:00]} 15. Qe2 {[%emt 0:06:45]} Bf8 {[%emt 0:10:20]} 16. Ne4 {[%emt 0:06:49]} Be7 {[%emt 0:01:03]} 17. Nxf6+ {[%emt 0:02:14]} Bxf6 {[%emt 0:05:05]} 18. Bxf6 {[%emt 0:01:23]} Nxf6 {[%emt 0:00:02]} 19. c3 {[%emt 0:01:25]} a5 {[%emt 0:04:49]} 20. Qc2 {[%emt 0:02:54]} Rd7 {[%emt 0:06:43]} 21. Re5 {[%emt 0:06:04]} b6 {[%emt 0:04:51]} 22. a3 {[%emt 0:05:49]} c5 {[%emt 0:05:18]} 23. Qa4 {[%emt 0:06:44]} Red8 {[%emt 0:10:50]} 24. Ree1 {[%emt 0:02:46]} cxd4 {[%emt 0:05:08]} 25. cxd4 {[%emt 0:01:15]} Qf4 {[%emt 0:09:21]} 26. Qb5 {[%emt 0:04:25]} Rd6 {[%emt 0:00:48]} 27. d5 {[%emt 0:05:46]} exd5 {[%emt 0:06:01]} 28. Bxd5 {[%emt 0:04:27]} g6 {[%emt 0:17:03]} 1-0

[Event "Lueneburg Open-B 2019"]
[Site "Lueneburg"]
[Date "2019.08.08"]
[Round "6.5"]
[White "Neumann, Lutz"]
[Black "Domschke, Stephan"]
[Result "1-0"]
[ECO "B20"]
[WhiteElo "1784"]
[BlackElo "1671"]
[Annotator "NA"]
[PlyCount "79"]
[EventDate "2019.08.03"]
[EventType "swiss"]
[EventCountry "GER"]
[SourceTitle "playchess.com"]
[Source "ChessBase"]
[SourceQuality "1"]
[TimeControl "40/5400+30:1800+30"]

1. e4 {[%emt 0:00:00]} c5 {[%emt 0:00:00]} 2. a3 {[%emt 0:00:00]} d6 {[%emt 0:01:00]} 3. b4 {[%emt 0:00:00]} Nf6 {[%emt 0:01:38]} 4. Nc3 {[%emt 0:00:21]} cxb4 {[%emt 0:00:53]} 5. axb4 {[%emt 0:00:10]} g6 {[%emt 0:00:56]} 6. Rb1 {[%emt 0:02:59]} Bg7 {[%emt 0:01:38]} 7. Nf3 {[%emt 0:04:27]} O-O {[%emt 0:00:35]} 8. d4 {[%emt 0:01:51]} Qc7 {[%emt 0:05:19]} 9. Bb2 {[%emt 0:02:39]} Bg4 {[%emt 0:02:34]} 10. h3 {[%emt 0:00:36]} Bxf3 {[%emt 0:00:45]} 11. Qxf3 {[%emt 0:00:16]} Nc6 {[%emt 0:00:46]} 12. Nb5 {[%emt 0:04:01]} Qb6 {[%emt 0:03:08]} 13. c3 {[%emt 0:03:44]} a6 {[%emt 0:06:46]} 14. Na3 {[%emt 0:00:19]} Rac8 {[%emt 0:02:05]} 15. Bd3 {[%emt 0:06:57]} Rfd8 {[%emt 0:05:34]} 16. O-O {[%emt 0:02:58]} d5 {[%emt 0:06:09]} 17. exd5 {[%emt 0:06:29]} Nxd5 {[%emt 0:00:24]} 18. Bc4 {[%emt 0:02:14]} e6 {[%emt 0:01:58]} 19. b5 {[%emt 0:07:54]} Na5 {[%emt 0:04:23]} 20. Be2 {[%emt 0:08:24]} Nb3 {[%emt 0:04:12]} 21. Rfd1 {[%emt 0:01:46]} Na5 {[%emt 0:15:16]} 22. c4 {[%emt 0:05:43]} Ne7 {[%emt 0:02:46]} 23. Bc3 {[%emt 0:04:25]} Bxd4 {[%emt 0:10:35]} 24. bxa6 {[%emt 0:05:06]} Nb3 {[%emt 0:10:15]} 25. axb7 {[%emt 0:02:22]} Rc6 {[%emt 0:01:53]} 26. Bxd4 {[%emt 0:05:25]} Nxd4 {[%emt 0:01:18]} 27. Qd3 {[%emt 0:00:34]} Nf3+ {[%emt 0:09:44]} 28. Qxf3 {[%emt 0:02:23]} Rxd1+ {[%emt 0:00:20]} 29. Bxd1 {[%emt 0:00:21]} Qxb1 {[%emt 0:00:37]} 30. Nxb1 {[%emt 0:00:01]} Rb6 {[%emt 0:00:06]} 31. Nc3 {[%emt 0:00:55]} Nf5 {[%emt 0:00:31]} 32. c5 {[%emt 0:00:58]} Rb4 {[%emt 0:00:28]} 33. c6 {[%emt 0:01:34]} Nd4 {[%emt 0:00:09]} 34. Qe4 {[%emt 0:00:38]} f5 {[%emt 0:00:23]} 35. Qf4 {[%emt 0:01:43]} Nxc6 {[%emt 0:00:50]} 36. Qxb4 {[%emt 0:00:08]} Nb8 {[%emt 0:00:35]} 37. Qd6 {[%emt 0:00:26]} Kg7 {[%emt 0:00:22]} 38. Qxb8 {[%emt 0:00:12]} Kh6 {[%emt 0:00:17]} 39. h4 {[%emt 0:00:19]} e5 {[%emt 0:00:15]} 40. Qf8# {[%emt 0:00:30]} 1-0

[Event "Lueneburg Open-B 2019"]
[Site "Lueneburg"]
[Date "2019.08.08"]
[Round "6.6"]
[White "Ahrens, Gunnar"]
[Black "Raedisch, Peter"]
[Result "1/2-1/2"]
[ECO "C20"]
[WhiteElo "1764"]
[BlackElo "1595"]
[Annotator "NA"]
[PlyCount "92"]
[EventDate "2019.08.03"]
[EventType "swiss"]
[EventCountry "GER"]
[SourceTitle "playchess.com"]
[Source "ChessBase"]
[SourceQuality "1"]
[TimeControl "40/5400+30:1800+30"]

1. a3 {[%emt 0:01:24]} e5 {[%emt 0:00:00]} 2. e4 {[%emt 0:00:17]} Bc5 {[%emt 0:00:58]} 3. Nf3 {[%emt 0:00:52]} d6 {[%emt 0:00:24]} 4. Bc4 {[%emt 0:00:34]} Nc6 {[%emt 0:02:17]} 5. c3 {[%emt 0:01:22]} h6 {[%emt 0:00:13]} 6. d4 {[%emt 0:04:00]} Bb6 {[%emt 0:02:34]} 7. dxe5 {[%emt 0:00:39]} Qe7 {[%emt 0:00:32]} 8. Qd5 {[%emt 0:02:40]} Nxe5 {[%emt 0:01:45]} 9. Nxe5 {[%emt 0:00:27]} dxe5 {[%emt 0:00:35]} 10. Bb5+ {[%emt 0:02:10]} Kf8 {[%emt 0:02:00]} 11. Be2 {[%emt 0:02:06]} Nf6 {[%emt 0:00:46]} 12. Qd3 {[%emt 0:00:22]} Ng4 {[%emt 0:03:15]} 13. O-O {[%emt 0:02:27]} Kg8 {[%emt 0:04:04]} 14. Nd2 {[%emt 0:03:08]} Kh7 {[%emt 0:02:46]} 15. Nc4 {[%emt 0:00:44]} Rd8 {[%emt 0:04:03]} 16. Qg3 {[%emt 0:00:56]} Qe6 {[%emt 0:07:18]} 17. Nxb6 {[%emt 0:01:35]} axb6 {[%emt 0:05:08]} 18. Bxg4 {[%emt 0:00:50]} Qxg4 {[%emt 0:00:20]} 19. Qxe5 {[%emt 0:00:26]} Rd1 {[%emt 0:04:36]} 20. f3 {[%emt 0:00:48]} Rxf1+ {[%emt 0:00:38]} 21. Kxf1 {[%emt 0:00:02]} Qd7 {[%emt 0:00:35]} 22. Qd4 {[%emt 0:01:24]} Qb5+ {[%emt 0:01:06]} 23. Kg1 {[%emt 0:04:38]} c5 {[%emt 0:04:10]} 24. Qf2 {[%emt 0:00:25]} Be6 {[%emt 0:00:49]} 25. Be3 {[%emt 0:00:53]} Rd8 {[%emt 0:00:16]} 26. b4 {[%emt 0:01:40]} Qa4 {[%emt 0:00:28]} 27. h3 {[%emt 0:00:54]} Rd1+ {[%emt 0:01:01]} 28. Rxd1 {[%emt 0:00:11]} Qxd1+ {[%emt 0:00:13]} 29. Qf1 {[%emt 0:01:46]} Qb3 {[%emt 0:01:10]} 30. Qc1 {[%emt 0:00:44]} cxb4 {[%emt 0:00:42]} 31. axb4 {[%emt 0:00:14]} b5 {[%emt 0:00:29]} 32. Bd4 {[%emt 0:00:39]} Qc4 {[%emt 0:00:47]} 33. Qf1 {[%emt 0:01:18]} Qb3 {[%emt 0:00:32]} 34. Qxb5 {[%emt 0:01:23]} Qd1+ {[%emt 0:01:35]} 35. Qf1 {[%emt 0:00:39]} Qb3 {[%emt 0:00:06]} 36. Qe1 {[%emt 0:00:58]} b5 {[%emt 0:00:09]} 37. Qg3 {[%emt 0:00:42]} f6 {[%emt 0:02:34]} 38. f4 {[%emt 0:01:12]} Qb1+ {[%emt 0:05:56]} 39. Kh2 {[%emt 1:02:01]} Qxe4 {[%emt 0:42:40]} 40. Qe3 {[%emt 0:00:00]} Qxe3 {[%emt 0:00:00]} 41. Bxe3 {[%emt 0:00:00]} Bc4 {[%emt 0:00:00]} 42. g4 {[%emt 0:00:00]} Kg6 {[%emt 0:00:00]} 43. h4 {[%emt 0:00:00]} Be2 {[%emt 0:00:00]} 44. Kg3 {[%emt 0:00:00]} Bd3 {[%emt 0:00:00]} 45. f5+ {[%emt 0:00:00]} Kf7 {[%emt 0:00:00]} 46. Kf4 {[%emt 0:00:00]} Bc4 {[%emt 0:00:00]} 1/2-1/2

[Event "Lueneburg Open-B 2019"]
[Site "Lueneburg"]
[Date "2019.08.08"]
[Round "6.7"]
[White "Seeber, Helmut"]
[Black "Buetow, Ingo"]
[Result "1/2-1/2"]
[ECO "C10"]
[WhiteElo "1580"]
[BlackElo "1747"]
[Annotator "NA"]
[PlyCount "50"]
[EventDate "2019.08.03"]
[EventType "swiss"]
[EventCountry "GER"]
[SourceTitle "playchess.com"]
[Source "ChessBase"]
[SourceQuality "1"]
[TimeControl "40/5400+30:1800+30"]

1. e4 {[%emt 0:00:00]} d5 {[%emt 0:00:00]} 2. d4 {[%emt 0:00:00]} e6 {[%emt 0:00:00]} 3. Nd2 {[%emt 0:00:10]} dxe4 {[%emt 0:00:00]} 4. Nxe4 {[%emt 0:00:19]} Bd7 {[%emt 0:00:01]} 5. Nf3 {[%emt 0:00:22]} Bc6 {[%emt 0:00:13]} 6. Bd3 {[%emt 0:00:25]} Nd7 {[%emt 0:00:48]} 7. O-O {[%emt 0:01:04]} Ngf6 {[%emt 0:00:37]} 8. Qe2 {[%emt 0:01:51]} Be7 {[%emt 0:00:26]} 9. c3 {[%emt 0:01:43]} O-O {[%emt 0:02:06]} 10. Bf4 {[%emt 0:01:54]} Nxe4 {[%emt 0:00:56]} 11. Bxe4 {[%emt 0:00:25]} Bxe4 {[%emt 0:00:38]} 12. Qxe4 {[%emt 0:00:13]} c6 {[%emt 0:00:10]} 13. Rfe1 {[%emt 0:00:19]} Nf6 {[%emt 0:00:42]} 14. Qc2 {[%emt 0:00:28]} Nd5 {[%emt 0:02:59]} 15. Be5 {[%emt 0:01:11]} Bf6 {[%emt 0:02:29]} 16. Rad1 {[%emt 0:00:29]} Qe7 {[%emt 0:09:18]} 17. Qe4 {[%emt 0:02:46]} g6 {[%emt 0:02:19]} 18. c4 {[%emt 0:01:21]} Nb6 {[%emt 0:00:24]} 19. b3 {[%emt 0:00:37]} Rad8 {[%emt 0:01:00]} 20. Qf4 {[%emt 0:00:34]} Bxe5 {[%emt 0:01:16]} 21. Nxe5 {[%emt 0:01:05]} Nd7 {[%emt 0:00:01]} 22. Ng4 {[%emt 0:01:16]} h5 {[%emt 0:07:00]} 23. Ne5 {[%emt 0:01:04]} Qf6 {[%emt 0:03:34]} 24. Qg3 {[%emt 1:22:24]} h4 {[%emt 1:05:03]} 25. Qg4 {[%emt 0:00:30]} Nxe5 {[%emt 0:00:30]} 1/2-1/2